[Event "ISR-ch Open 2018"]
[Site "Ma'alot-Tarshih"]
[Date "2018.12.16"]
[Round "5"]
[White "Bronstein, Or"]
[Black "Frenkel, Ran"]
[Result "1-0"]
[ECO "E73"]
[WhiteElo "2359"]
[BlackElo "2252"]
[Annotator "NA"]
[PlyCount "81"]
[EventDate "2018.12.11"]
[EventType "swiss"]
[EventCountry "ISR"]
[SourceTitle "playchess.com"]
[Source "ChessBase"]
[SourceQuality "1"]
[TimeControl "40/5400+30:1800+30"]

1. d4 {[%emt 0:00:00]} Nf6 {[%emt 0:00:00]} 2. c4 {[%emt 0:00:00]} g6 {[%emt 0:00:00]} 3. Nc3 {[%emt 0:00:00]} Bg7 {[%emt 0:00:00]} 4. e4 {[%emt 0:00:00]} d6 {[%emt 0:00:00]} 5. Be2 {[%emt 0:00:00]} O-O {[%emt 0:00:00]} 6. Be3 {[%emt 0:00:01]} e5 {[%emt 0:02:43]} 7. d5 {[%emt 0:00:21]} Na6 {[%emt 0:00:41]} 8. g4 {[%emt 0:01:38]} Nc5 {[%emt 0:01:25]} 9. f3 {[%emt 0:00:08]} a5 {[%emt 0:01:09]} 10. h4 {[%emt 0:00:29]} h5 {[%emt 0:06:15]} 11. g5 {[%emt 0:00:40]} Nfd7 {[%emt 0:06:28]} 12. Nh3 {[%emt 0:03:59]} Nb6 {[%emt 0:12:40]} 13. b3 {[%emt 0:09:15]} Bd7 {[%emt 0:00:32]} 14. Nf2 {[%emt 0:03:53]} c6 {[%emt 0:09:24]} 15. Qd2 {[%emt 0:20:54]} Qc7 {[%emt 0:18:09]} 16. Rc1 {[%emt 0:02:22]} Rad8 {[%emt 0:00:54]} 17. Nd3 {[%emt 0:12:39]} Nxd3+ {[%emt 0:00:39]} 18. Bxd3 {[%emt 0:00:08]} c5 {[%emt 0:00:11]} 19. Bf1 {[%emt 0:02:17]} Ra8 {[%emt 0:05:47]} 20. Rb1 {[%emt 0:00:50]} Kh7 {[%emt 0:07:53]} 21. Qg2 {[%emt 0:09:05]} Rfc8 {[%emt 0:16:07]} 22. Qh2 {[%emt 0:02:44]} Rab8 {[%emt 0:07:01]} 23. Bh3 {[%emt 0:01:33]} Bxh3 {[%emt 0:00:34]} 24. Qxh3 {[%emt 0:00:01]} Ra8 {[%emt 0:00:26]} 25. Nb5 {[%emt 0:02:44]} Qe7 {[%emt 0:00:05]} 26. O-O {[%emt 0:00:13]} Nd7 {[%emt 0:01:55]} 27. Rf2 {[%emt 0:02:25]} Rf8 {[%emt 0:00:15]} 28. Rbf1 {[%emt 0:01:27]} Kg8 {[%emt 0:01:02]} 29. Bd2 {[%emt 0:00:28]} b6 {[%emt 0:00:30]} 30. Bc3 {[%emt 0:01:53]} Rae8 {[%emt 0:00:45]} 31. a3 {[%emt 0:09:41]} Nb8 {[%emt 0:00:08]} 32. f4 {[%emt 0:05:33]} exf4 {[%emt 0:00:07]} 33. Bxg7 {[%emt 0:00:02]} Kxg7 {[%emt 0:00:07]} 34. Rxf4 {[%emt 0:00:08]} Kg8 {[%emt 0:01:35]} 35. Rf6 {[%emt 0:00:34]} Qxe4 {[%emt 0:01:01]} 36. Qg2 {[%emt 0:04:43]} Qd3 {[%emt 0:00:40]} 37. Nxd6 {[%emt 0:02:43]} Re2 {[%emt 0:00:24]} 38. R1f2 {[%emt 0:01:09]} Re1+ {[%emt 0:00:45]} 39. Kh2 {[%emt 0:00:42]} Re7 {[%emt 0:00:35]} 40. Qf3 {[%emt 0:00:23]} Re3 {[%emt 0:00:34]} 41. Qf4 {[%emt 0:02:46]} 1-0

[Event "ISR-ch Open 2018"]
[Site "Ma'alot-Tarshih"]
[Date "2018.12.16"]
[Round "5"]
[White "Zhizmer, Yuri"]
[Black "Emanuel, Yahav"]
[Result "1-0"]
[ECO "D04"]
[WhiteElo "2326"]
[BlackElo "2221"]
[Annotator "NA"]
[PlyCount "81"]
[EventDate "2018.12.11"]
[EventType "swiss"]
[EventCountry "ISR"]
[SourceTitle "playchess.com"]
[Source "ChessBase"]
[SourceQuality "1"]
[TimeControl "40/5400+30:1800+30"]

1. d4 {[%emt 0:00:00]} Nf6 {[%emt 0:00:00]} 2. Nf3 {[%emt 0:00:00]} d5 {[%emt 0:00:00]} 3. e3 {[%emt 0:00:12]} Bf5 {[%emt 0:00:20]} 4. Bd3 {[%emt 0:00:24]} e6 {[%emt 0:03:02]} 5. O-O {[%emt 0:02:25]} Nbd7 {[%emt 0:03:14]} 6. Bxf5 {[%emt 0:05:31]} exf5 {[%emt 0:00:02]} 7. b3 {[%emt 0:00:28]} Bd6 {[%emt 0:07:11]} 8. c4 {[%emt 0:00:26]} c6 {[%emt 0:00:51]} 9. cxd5 {[%emt 0:01:13]} Nxd5 {[%emt 0:03:08]} 10. Ba3 {[%emt 0:00:11]} N7f6 {[%emt 0:00:40]} 11. Qd3 {[%emt 0:00:36]} g6 {[%emt 0:04:29]} 12. Bxd6 {[%emt 0:02:28]} Qxd6 {[%emt 0:00:02]} 13. Nc3 {[%emt 0:00:18]} O-O {[%emt 0:01:06]} 14. Nxd5 {[%emt 0:00:09]} Qxd5 {[%emt 0:04:19]} 15. Rfc1 {[%emt 0:02:31]} Rad8 {[%emt 0:02:40]} 16. Qc4 {[%emt 0:03:53]} Rfe8 {[%emt 0:13:53]} 17. Qxd5 {[%emt 0:06:31]} Nxd5 {[%emt 0:00:41]} 18. g3 {[%emt 0:00:13]} Kg7 {[%emt 0:02:45]} 19. Rab1 {[%emt 0:04:01]} a6 {[%emt 0:05:33]} 20. b4 {[%emt 0:01:41]} Nb6 {[%emt 0:10:14]} 21. h4 {[%emt 0:05:41]} Kf6 {[%emt 0:01:02]} 22. Ne5 {[%emt 0:01:23]} h6 {[%emt 0:04:57]} 23. Nd3 {[%emt 0:00:12]} Re7 {[%emt 0:04:05]} 24. Nc5 {[%emt 0:00:55]} g5 {[%emt 0:02:05]} 25. hxg5+ {[%emt 0:00:19]} hxg5 {[%emt 0:00:02]} 26. Kg2 {[%emt 0:00:31]} f4 {[%emt 0:01:42]} 27. gxf4 {[%emt 0:00:45]} gxf4 {[%emt 0:00:10]} 28. Kf3 {[%emt 0:00:32]} fxe3 {[%emt 0:00:03]} 29. fxe3 {[%emt 0:00:03]} Rh8 {[%emt 0:05:17]} 30. e4 {[%emt 0:02:17]} Rh3+ {[%emt 0:04:35]} 31. Kg4 {[%emt 0:09:40]} Ra3 {[%emt 0:05:45]} 32. Rh1 {[%emt 0:06:49]} Rc7 {[%emt 0:06:54]} 33. Rbf1+ {[%emt 0:00:18]} Kg7 {[%emt 0:01:06]} 34. Rh5 {[%emt 0:01:27]} Re7 {[%emt 0:03:37]} 35. Rg5+ {[%emt 0:03:25]} Kf8 {[%emt 0:00:02]} 36. Rh1 {[%emt 0:00:14]} Rc7 {[%emt 0:01:26]} 37. Rh8+ {[%emt 0:10:11]} Ke7 {[%emt 0:00:01]} 38. Re5+ {[%emt 0:01:06]} Kf6 {[%emt 0:00:01]} 39. Ree8 {[%emt 0:02:05]} Kg6 {[%emt 0:00:02]} 40. Reg8+ {[%emt 0:00:42]} Kf6 {[%emt 0:00:01]} 41. e5+ {[%emt 0:30:08]} 1-0

[Event "ISR-ch Open 2018"]
[Site "Ma'alot-Tarshih"]
[Date "2018.12.16"]
[Round "5"]
[White "Libman, Guy"]
[Black "Lukin, Elisha"]
[Result "0-1"]
[ECO "A11"]
[WhiteElo "2299"]
[BlackElo "2280"]
[Annotator "NA"]
[PlyCount "120"]
[EventDate "2018.12.11"]
[EventType "swiss"]
[EventCountry "ISR"]
[SourceTitle "playchess.com"]
[Source "ChessBase"]
[SourceQuality "1"]
[TimeControl "40/5400+30:1800+30"]

1. c4 {[%emt 0:00:00]} c6 {[%emt 0:00:00]} 2. Nf3 {[%emt 0:00:06]} d5 {[%emt 0:00:14]} 3. e3 {[%emt 0:00:57]} Nf6 {[%emt 0:00:27]} 4. Qc2 {[%emt 0:00:38]} e6 {[%emt 0:00:57]} 5. Be2 {[%emt 0:00:39]} Bd6 {[%emt 0:00:10]} 6. d4 {[%emt 0:00:24]} dxc4 {[%emt 0:01:03]} 7. Bxc4 {[%emt 0:00:28]} Nbd7 {[%emt 0:00:31]} 8. Nbd2 {[%emt 0:00:35]} O-O {[%emt 0:00:41]} 9. O-O {[%emt 0:00:11]} Qe7 {[%emt 0:10:57]} 10. Bd3 {[%emt 0:00:20]} e5 {[%emt 0:01:02]} 11. Bf5 {[%emt 0:06:06]} exd4 {[%emt 0:06:07]} 12. Nxd4 {[%emt 0:02:23]} g6 {[%emt 0:04:21]} 13. Bh3 {[%emt 0:00:34]} Ne5 {[%emt 0:01:48]} 14. Bxc8 {[%emt 0:00:15]} Raxc8 {[%emt 0:00:09]} 15. N4f3 {[%emt 0:02:56]} Rfd8 {[%emt 0:03:19]} 16. b3 {[%emt 0:02:31]} Nd3 {[%emt 0:02:54]} 17. Bb2 {[%emt 0:01:50]} Nxb2 {[%emt 0:16:52]} 18. Qxb2 {[%emt 0:00:14]} b5 {[%emt 0:01:43]} 19. a4 {[%emt 0:02:47]} Nd5 {[%emt 0:05:15]} 20. Rfd1 {[%emt 0:07:05]} Bb4 {[%emt 0:07:28]} 21. Qc2 {[%emt 0:04:25]} Bc3 {[%emt 0:01:59]} 22. Rac1 {[%emt 0:02:30]} Bg7 {[%emt 0:00:23]} 23. Qc5 {[%emt 0:15:37]} Qxc5 {[%emt 0:01:04]} 24. Rxc5 {[%emt 0:00:07]} Nc3 {[%emt 0:06:04]} 25. Re1 {[%emt 0:00:18]} bxa4 {[%emt 0:01:31]} 26. bxa4 {[%emt 0:00:06]} Nxa4 {[%emt 0:00:47]} 27. Ra5 {[%emt 0:00:18]} Nb2 {[%emt 0:00:49]} 28. Rxa7 {[%emt 0:05:12]} c5 {[%emt 0:00:15]} 29. Nb3 {[%emt 0:05:22]} Nd3 {[%emt 0:03:47]} 30. Rd1 {[%emt 0:05:51]} c4 {[%emt 0:03:28]} 31. Nbd4 {[%emt 0:01:06]} c3 {[%emt 0:01:16]} 32. Nc2 {[%emt 0:00:56]} Nb4 {[%emt 0:01:23]} 33. Rxd8+ {[%emt 0:01:11]} Rxd8 {[%emt 0:00:10]} 34. Ncd4 {[%emt 0:00:12]} c2 {[%emt 0:05:39]} 35. Rc7 {[%emt 0:01:32]} Ra8 {[%emt 0:00:13]} 36. Nxc2 {[%emt 0:00:10]} Nxc2 {[%emt 0:00:16]} 37. g3 {[%emt 0:00:04]} Ra1+ {[%emt 0:02:13]} 38. Kg2 {[%emt 0:00:05]} Ra2 {[%emt 0:00:05]} 39. Kg1 {[%emt 0:00:32]} Bf6 {[%emt 0:01:03]} 40. Rc6 {[%emt 0:01:18]} Kg7 {[%emt 0:00:24]} 41. Rc4 {[%emt 0:31:03]} Rb2 {[%emt 0:32:48]} 42. Rc6 {[%emt 0:00:38]} Nb4 {[%emt 0:01:13]} 43. Rd6 {[%emt 0:02:14]} h6 {[%emt 0:00:46]} 44. Rd7 {[%emt 0:00:47]} Kf8 {[%emt 0:01:16]} 45. Rd6 {[%emt 0:03:30]} Ke7 {[%emt 0:00:25]} 46. Rd1 {[%emt 0:00:41]} Ke6 {[%emt 0:02:33]} 47. g4 {[%emt 0:02:59]} Ra2 {[%emt 0:01:10]} 48. Kg2 {[%emt 0:00:54]} Nd5 {[%emt 0:01:45]} 49. Rd3 {[%emt 0:01:54]} g5 {[%emt 0:00:00]} 50. h3 {[%emt 0:00:00]} Be5 {[%emt 0:00:00]} 51. Kg1 {[%emt 0:00:00]} Nf6 {[%emt 0:00:00]} 52. Nd2 {[%emt 0:00:00]} Ra1+ {[%emt 0:00:00]} 53. Kg2 {[%emt 0:00:00]} Rd1 {[%emt 0:00:00]} 54. Kf3 {[%emt 0:00:00]} Rh1 {[%emt 0:00:00]} 55. Nb3 {[%emt 0:00:00]} Rxh3+ {[%emt 0:00:00]} 56. Kg2 {[%emt 0:00:00]} Rh2+ {[%emt 0:00:00]} 57. Kg1 {[%emt 0:00:00]} Nxg4 {[%emt 0:00:00]} 58. Nc5+ {[%emt 0:00:00]} Kf5 {[%emt 0:00:00]} 59. Rd7 {[%emt 0:00:00]} Rxf2 {[%emt 0:00:00]} 60. Rxf7+ {[%emt 0:00:00]} Bf6 {[%emt 0:09:17]} 0-1

[Event "ISR-ch Open 2018"]
[Site "Ma'alot-Tarshih"]
[Date "2018.12.16"]
[Round "5"]
[White "Gershkowich, David"]
[Black "Chernomordik, Pavel"]
[Result "1/2-1/2"]
[ECO "A25"]
[WhiteElo "2193"]
[BlackElo "2277"]
[Annotator "NA"]
[PlyCount "26"]
[EventDate "2018.12.11"]
[EventType "swiss"]
[EventCountry "ISR"]
[SourceTitle "playchess.com"]
[Source "ChessBase"]
[SourceQuality "1"]
[TimeControl "40/5400+30:1800+30"]

1. d4 {[%emt 0:00:00]} g6 {[%emt 0:00:30]} 2. Nf3 {[%emt 0:00:00]} Bg7 {[%emt 0:00:03]} 3. c4 {[%emt 0:00:08]} d6 {[%emt 0:00:14]} 4. Nc3 {[%emt 0:00:08]} Nc6 {[%emt 0:00:46]} 5. e3 {[%emt 0:03:50]} e5 {[%emt 0:03:08]} 6. Be2 {[%emt 0:01:00]} exd4 {[%emt 0:03:39]} 7. Nxd4 {[%emt 0:01:42]} Nge7 {[%emt 0:01:01]} 8. Nf3 {[%emt 0:04:42]} Nf5 {[%emt 0:01:40]} 9. O-O {[%emt 0:03:23]} O-O {[%emt 0:00:14]} 10. Bd2 {[%emt 0:00:48]} Re8 {[%emt 0:01:02]} 11. Rc1 {[%emt 0:00:49]} b6 {[%emt 0:01:29]} 12. b3 {[%emt 0:00:29]} Bb7 {[%emt 0:02:04]} 13. Nd5 {[%emt 0:01:16]} Ne5 {[%emt 0:00:21]} 1/2-1/2

[Event "ISR-ch Open 2018"]
[Site "Ma'alot-Tarshih"]
[Date "2018.12.16"]
[Round "5"]
[White "Gleizer, Mark"]
[Black "Iliaguev, Nisim"]
[Result "0-1"]
[ECO "D00"]
[WhiteElo "2186"]
[BlackElo "2338"]
[Annotator "NA"]
[PlyCount "80"]
[EventDate "2018.12.11"]
[EventType "swiss"]
[EventCountry "ISR"]
[SourceTitle "playchess.com"]
[Source "ChessBase"]
[SourceQuality "1"]
[TimeControl "40/5400+30:1800+30"]

1. d4 {[%emt 0:00:00]} Nf6 {[%emt 0:00:00]} 2. c3 {[%emt 0:00:00]} g6 {[%emt 0:00:00]} 3. Bg5 {[%emt 0:00:00]} Bg7 {[%emt 0:00:00]} 4. Nd2 {[%emt 0:00:00]} d5 {[%emt 0:00:00]} 5. e3 {[%emt 0:00:13]} O-O {[%emt 0:00:05]} 6. Bd3 {[%emt 0:00:27]} c5 {[%emt 0:00:48]} 7. f4 {[%emt 0:01:07]} Qb6 {[%emt 0:05:00]} 8. Rb1 {[%emt 0:01:23]} Nc6 {[%emt 0:01:53]} 9. Qf3 {[%emt 0:08:45]} cxd4 {[%emt 0:06:27]} 10. exd4 {[%emt 0:00:19]} Qa5 {[%emt 0:00:51]} 11. a3 {[%emt 0:01:32]} Nh5 {[%emt 0:08:12]} 12. g4 {[%emt 0:02:55]} Nf6 {[%emt 0:00:39]} 13. h3 {[%emt 0:02:43]} Re8 {[%emt 0:10:32]} 14. Ne2 {[%emt 0:01:15]} Qb6 {[%emt 0:00:36]} 15. Bh4 {[%emt 0:05:31]} Bd7 {[%emt 0:02:52]} 16. g5 {[%emt 0:06:21]} Nh5 {[%emt 0:00:47]} 17. Qxd5 {[%emt 0:01:15]} Nb4 {[%emt 0:05:26]} 18. Qxd7 {[%emt 0:02:34]} Nxd3+ {[%emt 0:00:12]} 19. Kd1 {[%emt 0:01:06]} Ndxf4 {[%emt 0:01:56]} 20. Nxf4 {[%emt 0:03:52]} Nxf4 {[%emt 0:00:11]} 21. Bg3 {[%emt 0:00:57]} Rad8 {[%emt 0:01:59]} 22. Qa4 {[%emt 0:02:39]} Nh5 {[%emt 0:04:29]} 23. Bh2 {[%emt 0:02:11]} a6 {[%emt 0:16:30]} 24. Re1 {[%emt 0:02:02]} Qa7 {[%emt 0:04:17]} 25. Be5 {[%emt 0:08:23]} b5 {[%emt 0:04:08]} 26. Qa5 {[%emt 0:02:12]} f6 {[%emt 0:02:21]} 27. Bc7 {[%emt 0:06:23]} Rc8 {[%emt 0:01:37]} 28. gxf6 {[%emt 0:01:51]} exf6 {[%emt 0:00:47]} 29. Rxe8+ {[%emt 0:05:16]} Rxe8 {[%emt 0:00:02]} 30. Kc2 {[%emt 0:00:43]} Bh6 {[%emt 0:02:21]} 31. Rd1 {[%emt 0:00:55]} Qb7 {[%emt 0:02:44]} 32. a4 {[%emt 0:07:03]} Re2 {[%emt 0:04:37]} 33. axb5 {[%emt 0:01:19]} axb5 {[%emt 0:01:53]} 34. Kd3 {[%emt 0:07:02]} Qg2 {[%emt 0:05:02]} 35. c4 {[%emt 0:00:18]} bxc4+ {[%emt 0:01:40]} 36. Kxc4 {[%emt 0:00:42]} Bxd2 {[%emt 0:00:55]} 37. Qd5+ {[%emt 0:01:00]} Qxd5+ {[%emt 0:00:06]} 38. Kxd5 {[%emt 0:00:19]} Bf4 {[%emt 0:00:32]} 39. Bd6 {[%emt 0:02:12]} f5 {[%emt 0:01:00]} 40. b4 {[%emt 0:01:54]} Nf6+ {[%emt 0:00:21]} 0-1

[Event "ISR-ch Open 2018"]
[Site "Ma'alot-Tarshih"]
[Date "2018.12.16"]
[Round "5"]
[White "Kupervaser, Erez"]
[Black "Kobo, Ori"]
[Result "0-1"]
[ECO "B07"]
[WhiteElo "2168"]
[BlackElo "2494"]
[Annotator "ChessBase"]
[PlyCount "60"]
[EventDate "2018.12.11"]
[EventType "swiss"]
[EventCountry "ISR"]
[SourceTitle "playchess.com"]
[Source "ChessBase"]
[SourceQuality "1"]
[TimeControl "40/5400+30:1800+30"]

1. e4 {[%emt 0:00:00]} g6 {[%emt 0:00:04]} 2. d4 {[%emt 0:00:06]} Bg7 {[%emt 0:00:09]} 3. Nc3 {[%emt 0:00:05]} d6 {[%emt 0:00:18]} 4. Be3 {[%emt 0:00:34]} Nf6 {[%emt 0:00:44]} 5. f3 {[%emt 0:00:06]} c6 {[%emt 0:00:13]} 6. Qd2 {[%emt 0:00:39]} b5 {[%emt 0:00:25]} 7. Nge2 {[%emt 0:01:42]} Nbd7 {[%emt 0:02:36]} 8. Bh6 {[%emt 0:01:12]} Bxh6 {[%emt 0:01:18]} 9. Qxh6 {[%emt 0:00:03]} Qa5 {[%emt 0:05:21]} 10. Nc1 {[%emt 0:01:26]} Bb7 {[%emt 0:08:53]} 11. Nb3 {[%emt 0:04:29]} Qc7 {[%emt 0:00:26]} 12. Qe3 {[%emt 0:08:37]} a5 {[%emt 0:09:19]} 13. a4 {[%emt 0:01:00]} b4 {[%emt 0:00:15]} 14. Nb1 {[%emt 0:02:43]} e5 {[%emt 0:03:05]} 15. dxe5 {[%emt 0:02:54]} Nxe5 {[%emt 0:01:34]} 16. N1d2 {[%emt 0:03:34]} O-O {[%emt 0:02:41]} 17. O-O-O {[%emt 0:02:27]} Rfe8 {[%emt 0:14:41]} 18. h4 {[%emt 0:04:49]} h5 {[%emt 0:05:18]} 19. Qg5 {[%emt 0:07:08]} Kg7 {[%emt 0:06:31]} 20. Nd4 {[%emt 0:09:23]} Nh7 {[%emt 0:00:05]} 21. Qf4 {[%emt 0:00:17]} d5 {[%emt 0:03:15]} 22. Kb1 {[%emt 0:00:30]} Nf6 {[%emt 0:01:30]} 23. Qg5 {[%emt 0:04:19]} Nh7 {[%emt 0:00:06]} 24. Qf4 {[%emt 0:00:04]} Rad8 {[%emt 0:05:45]} 25. Be2 {[%emt 0:03:22]} Nf6 {[%emt 0:05:43]} 26. Qg5 {[%emt 0:01:00]} Bc8 {[%emt 0:01:20]} 27. Nf5+ {[%emt 0:02:34]} Bxf5 {[%emt 0:00:06]} 28. exf5 {[%emt 0:00:06]} Ned7 {[%emt 0:01:16]} 29. Ne4 {[%emt 0:13:53]} dxe4 {[%emt 0:00:31]} 30. fxg6 {[%emt 0:00:08]} fxg6 {[%emt 0:01:05]} 0-1

[Event "ISR-ch Open 2018"]
[Site "Ma'alot-Tarshih"]
[Date "2018.12.17"]
[Round "6"]
[White "Galburd, Yan"]
[Black "Gershkowich, David"]
[Result "1-0"]
[ECO "C00"]
[WhiteElo "2382"]
[BlackElo "2193"]
[Annotator "NA"]
[PlyCount "70"]
[EventDate "2018.12.12"]
[EventType "swiss"]
[EventCountry "ISR"]
[SourceTitle "playchess.com"]
[Source "ChessBase"]
[SourceQuality "1"]
[TimeControl "40/5400+30:1800+30"]

1. Nf3 {[%emt 0:02:48]} Nf6 {[%emt 0:00:00]} 2. g3 {[%emt 0:00:13]} b6 {[%emt 0:01:02]} 3. Bg2 {[%emt 0:00:40]} Bb7 {[%emt 0:00:03]} 4. O-O {[%emt 0:01:28]} e6 {[%emt 0:01:38]} 5. d3 {[%emt 0:00:49]} d5 {[%emt 0:00:20]} 6. Nbd2 {[%emt 0:02:19]} c5 {[%emt 0:00:30]} 7. e4 {[%emt 0:02:09]} Be7 {[%emt 0:00:15]} 8. Re1 {[%emt 0:01:08]} Nc6 {[%emt 0:01:30]} 9. c3 {[%emt 0:01:22]} Qc7 {[%emt 0:03:20]} 10. Qe2 {[%emt 0:05:30]} h6 {[%emt 0:08:15]} 11. a3 {[%emt 0:03:13]} O-O-O {[%emt 0:07:24]} 12. b4 {[%emt 0:00:32]} g5 {[%emt 0:07:02] LiveBook: 7 Games} 13. h3 {[%emt 0:08:38]} Bf8 {[%emt 0:14:24]} 14. e5 {[%emt 0:08:31]} Nd7 $14 {[%emt 0:00:19]} 15. d4 {[%emt 0:00:25]} Ne7 {[%emt 0:04:28]} 16. Nf1 {[%emt 0:58:15]} c4 {[%emt 0:47:30]} 17. g4 {[%emt 0:00:30]} Ng6 {[%emt 0:00:30]} 18. Ng3 {[%emt 0:00:30]} a6 {[%emt 0:00:00]} 19. Nh5 {[%emt 0:00:00]} Be7 20. Nh2 {[%emt 0:01:00]} Rdg8 {[%emt 0:00:00]} 21. Rf1 {[%emt 0:00:00]} Nh4 {[%emt 0:00:00]} 22. Bh1 {[%emt 0:00:00]} Qd8 {[%emt 0:00:00]} 23. f4 {[%emt 0:00:00]} Qe8 {[%emt 0:00:00]} 24. fxg5 {[%emt 0:00:00]} hxg5 {[%emt 0:00:00]} 25. Be3 {[%emt 0:00:00]} Bd8 {[%emt 0:00:00]} 26. Rf2 {[%emt 0:00:00]} Rh7 {[%emt 0:00:00]} 27. Raf1 {[%emt 0:00:00]} Bc6 {[%emt 0:00:00]} 28. Qc2 {[%emt 0:00:00]} Ng6 {[%emt 0:00:00]} 29. Bg2 {[%emt 0:00:00]} Rgh8 {[%emt 0:06:00]} 30. Qd2 {[%emt 0:05:00]} Nh4 {[%emt 0:00:30]} 31. Bxg5 {[%emt 0:00:30]} Bxg5 {[%emt 0:00:00]} 32. Qxg5 {[%emt 0:00:00]} Nxg2 33. Rxg2 {[%emt 0:00:00]} Ba4 {[%emt 0:00:00]} 34. Qd2 {[%emt 0:00:00]} Qe7 35. Nf3 {[%emt 0:02:00]} Rg8 {[%emt 0:00:00]} 1-0

[Event "ISR-ch Open 2018"]
[Site "Ma'alot-Tarshih"]
[Date "2018.12.17"]
[Round "6"]
[White "Aharon, Ofir"]
[Black "Bronstein, Or"]
[Result "1/2-1/2"]
[ECO "B51"]
[WhiteElo "2320"]
[BlackElo "2359"]
[Annotator "NA"]
[PlyCount "50"]
[EventDate "2018.12.12"]
[EventType "swiss"]
[EventCountry "ISR"]
[SourceTitle "playchess.com"]
[Source "ChessBase"]
[SourceQuality "1"]
[TimeControl "40/5400+30:1800+30"]

1. e4 {[%emt 0:00:14]} c5 {[%emt 0:00:08]} 2. Nf3 {[%emt 0:00:06]} d6 {[%emt 0:00:22]} 3. Bb5+ {[%emt 0:00:17]} Nd7 {[%emt 0:00:29]} 4. Ba4 {[%emt 0:00:13]} Ngf6 {[%emt 0:08:35]} 5. O-O {[%emt 0:00:19]} a6 {[%emt 0:06:31]} 6. c4 {[%emt 0:00:15] LiveBook: 17 Games} e6 {[%emt 0:02:59]} 7. d4 {[%emt 0:00:53]} cxd4 {[%emt 0:01:15]} 8. Nxd4 {[%emt 0:00:07]} Nxe4 {[%emt 0:09:13]} 9. Re1 {[%emt 0:05:01]} Nef6 {[%emt 0:06:33]} ({Reject} 9... Qh4 $6 10. g3 $18) (9... Nec5 $11) 10. Bf4 {[%emt 0:13:33]} (10. Nc3 $16) 10... Be7 $1 {[%emt 0:04:48]} 11. Rxe6 $1 {[%emt 0:14:29]} fxe6 {[%emt 0:07:22]} 12. Nxe6 {[%emt 0:00:06]} Qa5 {[%emt 0:06:01]} 13. c5 {[%emt 0:10:22]} b5 {[%emt 0:05:49]} 14. cxb6 {[%emt 0:04:53]} Bb7 $16 {[%emt 0:05:44]} (14... Kf7 $1 $11 15. Ng5+ Kf8 16. Ne6+ Kf7 17. Ng5+ Kf8 18. Ne6+ Kg8) 15. Nc7+ {[%emt 0:07:06]} Kf7 {[%emt 0:02:30]} 16. Nc3 {[%emt 0:14:57]} Nxb6 {[%emt 0:05:21]} 17. Bb3+ {[%emt 0:01:37]} d5 {[%emt 0:01:51]} 18. Qe2 {[%emt 0:02:08]} Rad8 {[%emt 0:08:18]} 19. Qe6+ {[%emt 0:02:11]} Kf8 {[%emt 0:00:09]} 20. Re1 {[%emt 0:03:25]} Qc5 {[%emt 0:00:25]} 21. Ne4 {[%emt 0:09:26]} Nxe4 {[%emt 0:06:31]} 22. Qf5+ {[%emt 0:00:45]} Kg8 {[%emt 0:02:22]} 23. Qe6+ {[%emt 0:00:04]} Kf8 {[%emt 0:00:08]} 24. Qf5+ {[%emt 0:00:02]} Kg8 {[%emt 0:03:12]} 25. Qe6+ {[%emt 0:05:14]} Kf8 {[%emt 0:00:06]} 1/2-1/2

[Event "ISR-ch Open 2018"]
[Site "Ma'alot-Tarshih"]
[Date "2018.12.17"]
[Round "6"]
[White "Mordechai, Hanan"]
[Black "Lukin, Elisha"]
[Result "1-0"]
[ECO "C18"]
[WhiteElo "2310"]
[BlackElo "2280"]
[Annotator "NA"]
[PlyCount "69"]
[EventDate "2018.12.12"]
[EventType "swiss"]
[EventCountry "ISR"]
[SourceTitle "playchess.com"]
[Source "ChessBase"]
[SourceQuality "1"]
[TimeControl "40/5400+30:1800+30"]

1. e4 {[%emt 0:00:00]} e6 {[%emt 0:00:00]} 2. d4 {[%emt 0:00:00]} d5 {[%emt 0:00:00]} 3. Nc3 {[%emt 0:00:00]} Bb4 {[%emt 0:00:00]} 4. e5 {[%emt 0:00:00]} c5 {[%emt 0:00:05]} 5. a3 {[%emt 0:00:00]} Bxc3+ {[%emt 0:00:06]} 6. bxc3 {[%emt 0:00:00]} Qa5 {[%emt 0:00:39]} 7. Bd2 {[%emt 0:00:10] LiveBook: 1271 Games} Qa4 {[%emt 0:02:01]} 8. Qg4 {[%emt 0:00:13]} Kf8 {[%emt 0:00:14]} 9. Qd1 {[%emt 0:00:10] C18: French: 3 Nc3 Bb4: Main line: 7 h4 and 7 Qg4} (9. h4 Nc6 10. h5 h6 11. Qd1 cxd4 12. Nf3 dxc3 13. Bxc3 g5 14. hxg6 Qe4+ 15. Be2 Qxg6 16. Qd2 Nge7 17. Bd3 Qxg2 18. Ke2 Qg4 19. Rh4 Qg7 20. Rg1 Ng6 21. Rf4 Nce7 22. Bb4 a5 23. Rxg6 {1-0 (23) Caruana,F (2804)-Lenderman,A (2599) Saint Louis 2018}) 9... b6 {[%emt 0:00:18]} 10. dxc5 {[%emt 0:00:53]} bxc5 {[%emt 0:00:10]} 11. Nf3 {[%emt 0:00:17]} Ba6 {[%emt 0:01:14]} 12. Bxa6 {[%emt 0:00:14]} Qxa6 {[%emt 0:00:19]} 13. Qe2 {[%emt 0:00:09]} Ne7 {[%emt 0:07:17]} 14. Rb1 {[%emt 0:01:53]} Qc6 {[%emt 0:05:15] [#]} 15. O-O $146 {[%emt 0:03:42]} ({Predecessor:} 15. c4 Nd7 16. cxd5 exd5 {1-0 (61) Piorun,K (2640)-Stupak,K (2578) Heraklio 2017}) 15... h6 {[%emt 0:00:48]} 16. h4 {[%emt 0:08:01]} Nd7 {[%emt 0:01:19]} 17. h5 {[%emt 0:01:14]} g5 {[%emt 0:08:13]} 18. Nh2 {[%emt 0:05:30]} Qa4 {[%emt 0:16:58]} 19. Bc1 {[%emt 0:11:19]} Qc4 {[%emt 0:15:03]} 20. Qxc4 {[%emt 0:06:00]} dxc4 {[%emt 0:00:50]} 21. Rb7 {[%emt 0:07:56]} Ke8 {[%emt 0:13:06]} 22. f4 {[%emt 0:02:06]} Nd5 {[%emt 0:03:38]} 23. Ng4 {[%emt 0:04:27]} Nxc3 $18 {[%emt 0:02:59]} (23... Rh7 $16 {was worth a try.} 24. fxg5 hxg5) 24. fxg5 {[%emt 0:11:35]} hxg5 {[%emt 0:01:28]} 25. Bxg5 {[%emt 0:01:36]} Ne4 {[%emt 0:02:46]} 26. Rd1 {[%emt 0:04:22]} Nb6 {[%emt 0:02:12]} 27. Nf6+ {[%emt 0:08:57]} Nxf6 {[%emt 0:00:12]} 28. Bxf6 {[%emt 0:00:01]} Rxh5 {[%emt 0:00:11]} 29. Rxa7 {[%emt 0:00:22]} Rc8 {[%emt 0:00:11]} 30. Rd6 {[%emt 0:03:19]} Nd5 {[%emt 0:00:02]} 31. Rdd7 {[%emt 0:00:55]} Rh7 {[%emt 0:07:08]} 32. a4 {[%emt 0:03:12]} c3 {[%emt 0:01:53]} 33. a5 {[%emt 0:00:34]} Rb8 {[%emt 0:02:55]} 34. a6 {[%emt 0:01:47]} Nb4 {[%emt 0:03:43]} 35. Rab7 {[%emt 0:05:36]} 1-0